[Event "*** Titled Tuesday Blitz"]
[Site "Chess.com"]
[Date "2020.04.07"]
[Round "4"]
[White "Tomytoteph"]
[Black "Skatchkov_V"]
[Result "0-1"]
[WhiteElo "2331"]
[BlackElo "2540"]
[TimeControl "180+1"]
[EndTime "13:38:46 PDT"]
[Termination "Skatchkov_V won by resignation"]

1. d4 {[%clk 0:03:00.9]} 1... Nf6 {[%clk 0:02:59.5]} 2. Nf3 {[%clk 0:03:00.5]}
2... e6 {[%clk 0:02:59.1]} 3. c4 {[%clk 0:03:00.5]} 3... b6 {[%clk 0:02:59.3]}
4. g3 {[%clk 0:02:58.3]} 4... Bb7 {[%clk 0:02:59.5]} 5. Bg2 {[%clk 0:02:58.2]}
5... Be7 {[%clk 0:02:59.8]} 6. O-O {[%clk 0:02:58.3]} 6... O-O {[%clk
0:02:59.7]} 7. b3 {[%clk 0:02:57.9]} 7... d5 {[%clk 0:02:55.3]} 8. cxd5 {[%clk
0:02:55.9]} 8... exd5 {[%clk 0:02:50.2]} 9. Bb2 {[%clk 0:02:55.4]} 9... Nbd7
{[%clk 0:02:47.6]} 10. Nbd2 {[%clk 0:02:54.7]} 10... Re8 {[%clk 0:02:47.4]} 11.
Ne5 {[%clk 0:02:53.1]} 11... Bd6 {[%clk 0:02:45.7]} 12. Ndf3 {[%clk 0:02:44.9]}
12... Ne4 {[%clk 0:02:38.8]} 13. Rc1 {[%clk 0:02:42.4]} 13... c5 {[%clk
0:02:34.6]} 14. e3 {[%clk 0:02:32.1]} 14... Ndf6 {[%clk 0:02:25.2]} 15. Qe2
{[%clk 0:02:20.2]} 15... Rc8 {[%clk 0:02:22.2]} 16. Rfd1 {[%clk 0:02:15.3]}
16... h6 {[%clk 0:02:21]} 17. Qb5 {[%clk 0:02:08.8]} 17... a6 {[%clk 0:02:17.9]}
18. Qe2 {[%clk 0:01:59.2]} 18... Qe7 {[%clk 0:02:17.4]} 19. h3 {[%clk
0:01:52.8]} 19... Red8 {[%clk 0:02:06.3]} 20. Nd3 {[%clk 0:01:34.5]} 20... c4
{[%clk 0:02:05.2]} 21. bxc4 {[%clk 0:01:24.5]} 21... dxc4 {[%clk 0:02:06.1]} 22.
Nde5 {[%clk 0:01:22.8]} 22... b5 {[%clk 0:02:04.6]} 23. Ba1 {[%clk 0:01:11.4]}
23... c3 {[%clk 0:01:59.1]} 24. Nd3 {[%clk 0:00:59.2]} 24... b4 {[%clk
0:01:57.2]} 25. Nfe5 {[%clk 0:00:55.3]} 25... a5 {[%clk 0:01:56.6]} 26. f3
{[%clk 0:00:49]} 26... Nxg3 {[%clk 0:01:55.3]} 27. Qf2 {[%clk 0:00:46.8]} 27...
Nf5 {[%clk 0:01:55.1]} 28. e4 {[%clk 0:00:45.7]} 28... Nxd4 {[%clk 0:01:53.4]}
29. Qxd4 {[%clk 0:00:45]} 29... Bc5 {[%clk 0:01:53.3]} 30. Nxc5 {[%clk
0:00:40.8]} 30... Rxd4 {[%clk 0:01:52.1]} 31. Rxd4 {[%clk 0:00:38.9]} 31... Qxc5
{[%clk 0:01:51.8]} 32. Rd1 {[%clk 0:00:37.3]} 32... Rd8 {[%clk 0:01:49.1]} 0-1

[Event "*** Titled Tuesday Blitz"]
[Site "Chess.com"]
[Date "2020.04.07"]
[Round "4"]
[White "Th3ChessViking"]
[Black "ajkom197"]
[Result "0-1"]
[WhiteElo "2517"]
[BlackElo "2319"]
[TimeControl "180+1"]
[EndTime "13:38:52 PDT"]
[Termination "ajkom197 won by resignation"]

1. d4 {[%clk 0:02:52.7]} 1... d5 {[%clk 0:02:58.7]} 2. Bf4 {[%clk 0:02:51.8]}
2... c5 {[%clk 0:02:57.8]} 3. e3 {[%clk 0:02:51.9]} 3... Nc6 {[%clk 0:02:57.4]}
4. c3 {[%clk 0:02:50.5]} 4... cxd4 {[%clk 0:02:56.2]} 5. exd4 {[%clk 0:02:49.8]}
5... Nf6 {[%clk 0:02:55.6]} 6. Nd2 {[%clk 0:02:49.3]} 6... Bg4 {[%clk 0:02:55]}
7. Qb3 {[%clk 0:02:48.6]} 7... Qc8 {[%clk 0:02:55]} 8. h3 {[%clk 0:02:48.2]}
8... Bh5 {[%clk 0:02:54.7]} 9. Ngf3 {[%clk 0:02:48.3]} 9... e6 {[%clk
0:02:54.5]} 10. Bd3 {[%clk 0:02:47.6]} 10... Be7 {[%clk 0:02:53.3]} 11. O-O
{[%clk 0:02:47.1]} 11... O-O {[%clk 0:02:53.4]} 12. Rae1 {[%clk 0:02:46.3]}
12... a6 {[%clk 0:02:52.4]} 13. Re3 {[%clk 0:02:43.3]} 13... b5 {[%clk
0:02:47.9]} 14. Ne5 {[%clk 0:02:42.7]} 14... Nxe5 {[%clk 0:02:46.9]} 15. Bxe5
{[%clk 0:02:34.2]} 15... Bg6 {[%clk 0:02:41.3]} 16. Bxg6 {[%clk 0:02:20.1]}
16... hxg6 {[%clk 0:02:42.2]} 17. Bxf6 {[%clk 0:02:17.7]} 17... Bxf6 {[%clk
0:02:41.5]} 18. f4 {[%clk 0:02:09.8]} 18... Qc6 {[%clk 0:02:27.1]} 19. Nf3
{[%clk 0:02:08.8]} 19... a5 {[%clk 0:02:24.4]} 20. g4 {[%clk 0:02:05.6]} 20...
Qc4 {[%clk 0:02:22.3]} 21. Qc2 {[%clk 0:01:33.4]} 21... Rfc8 {[%clk 0:02:12.4]}
22. g5 {[%clk 0:01:31.9]} 22... Bxd4 {[%clk 0:02:01.7]} 23. Nxd4 {[%clk
0:00:28.9]} 23... Qxd4 {[%clk 0:02:00.2]} 24. Qf2 {[%clk 0:00:29.8]} 24... Qc5
{[%clk 0:01:53.1]} 25. h4 {[%clk 0:00:30.7]} 25... d4 {[%clk 0:01:48.5]} 26.
cxd4 {[%clk 0:00:31.6]} 26... Qxd4 {[%clk 0:01:49.3]} 27. h5 {[%clk 0:00:30.7]}
27... gxh5 {[%clk 0:01:40.3]} 28. f5 {[%clk 0:00:30.9]} 28... Rc2 {[%clk
0:01:31.6]} 29. Qxc2 {[%clk 0:00:30.8]} 29... Qxe3+ {[%clk 0:01:31.3]} 30. Kg2
{[%clk 0:00:31.7]} 30... Qxg5+ {[%clk 0:01:31]} 31. Kh2 {[%clk 0:00:32.1]} 31...
Qh4+ {[%clk 0:01:30.7]} 0-1

[Event "*** Titled Tuesday Blitz"]
[Site "Chess.com"]
[Date "2020.04.07"]
[Round "4"]
[White "IwkooO"]
[Black "mbachez"]
[Result "0-1"]
[WhiteElo "2544"]
[BlackElo "2365"]
[TimeControl "180+1"]
[EndTime "13:38:54 PDT"]
[Termination "mbachez won by checkmate"]

1. e4 {[%clk 0:03:00.9]} 1... e6 {[%clk 0:02:59.3]} 2. d4 {[%clk 0:03:00.9]}
2... d5 {[%clk 0:02:59]} 3. Nd2 {[%clk 0:03:01.8]} 3... h6 {[%clk 0:02:58.4]} 4.
Ngf3 {[%clk 0:02:59]} 4... Nf6 {[%clk 0:02:57.9]} 5. Bd3 {[%clk 0:02:54.4]} 5...
c5 {[%clk 0:02:57.4]} 6. dxc5 {[%clk 0:02:53.2]} 6... Bxc5 {[%clk 0:02:56.8]} 7.
Qe2 {[%clk 0:02:53.3]} 7... Nc6 {[%clk 0:02:54.3]} 8. O-O {[%clk 0:02:53.1]}
8... Qc7 {[%clk 0:02:45.9]} 9. c3 {[%clk 0:02:46.6]} 9... Bb6 {[%clk 0:02:43.3]}
10. exd5 {[%clk 0:02:43.3]} 10... Nxd5 {[%clk 0:02:41.4]} 11. Nc4 {[%clk
0:02:44.2]} 11... O-O {[%clk 0:02:20.6]} 12. Nxb6 {[%clk 0:02:42.1]} 12... axb6
{[%clk 0:02:20.1]} 13. Qe4 {[%clk 0:02:40.6]} 13... Nf6 {[%clk 0:02:17.1]} 14.
Qh4 {[%clk 0:02:40.2]} 14... Ra5 {[%clk 0:02:16.8]} 15. Bf4 {[%clk 0:02:27]}
15... Qe7 {[%clk 0:02:10.5]} 16. Be3 {[%clk 0:02:14.5]} 16... Rh5 {[%clk
0:02:02.1]} 17. Qg3 {[%clk 0:02:06.7]} 17... e5 {[%clk 0:01:32.6]} 18. Be2
{[%clk 0:01:57.9]} 18... Ne4 {[%clk 0:01:26]} 19. Nd2 {[%clk 0:01:25.4]} 19...
Nxg3 {[%clk 0:01:24.1]} 20. hxg3 {[%clk 0:01:26.3]} 20... Rf5 {[%clk 0:01:18.5]}
21. Bxb6 {[%clk 0:01:26.7]} 21... e4 {[%clk 0:01:17.6]} 22. g4 {[%clk
0:01:20.9]} 22... Rd5 {[%clk 0:01:14.7]} 23. Be3 {[%clk 0:01:17]} 23... Rfd8
{[%clk 0:01:13.6]} 24. Nc4 {[%clk 0:01:11.8]} 24... Ne5 {[%clk 0:01:13.2]} 25.
Nb6 {[%clk 0:01:09.3]} 25... Bxg4 {[%clk 0:01:07.4]} 26. Nxd5 {[%clk 0:01:08]}
26... Rxd5 {[%clk 0:01:07.3]} 27. Rfe1 {[%clk 0:01:05.3]} 27... Bxe2 {[%clk
0:01:06.4]} 28. Rxe2 {[%clk 0:01:06.2]} 28... Qh4 {[%clk 0:00:56.2]} 29. Bb6
{[%clk 0:01:06.3]} 29... Nf3+ {[%clk 0:00:54.7]} 30. gxf3 {[%clk 0:01:06.5]}
30... Rg5+ {[%clk 0:00:54.6]} 31. Kf1 {[%clk 0:01:06.1]} 31... Qh1# {[%clk
0:00:54.6]} 0-1

[Event "*** Titled Tuesday Blitz"]
[Site "Chess.com"]
[Date "2020.04.07"]
[Round "4"]
[White "mshuaau0"]
[Black "Willychess95"]
[Result "0-1"]
[WhiteElo "2216"]
[BlackElo "2616"]
[TimeControl "180+1"]
[EndTime "13:38:55 PDT"]
[Termination "Willychess95 won by resignation"]

1. e4 {[%clk 0:03:00.9]} 1... c5 {[%clk 0:02:57.8]} 2. Nf3 {[%clk 0:03:00.9]}
2... d6 {[%clk 0:02:58.2]} 3. d4 {[%clk 0:03:01.1]} 3... cxd4 {[%clk 0:02:59.1]}
4. Nxd4 {[%clk 0:03:01.9]} 4... Nf6 {[%clk 0:02:59.6]} 5. Nc3 {[%clk 0:03:02]}
5... g6 {[%clk 0:03:00]} 6. Be3 {[%clk 0:03:01.1]} 6... a6 {[%clk 0:03:00.4]} 7.
f3 {[%clk 0:03:01]} 7... b5 {[%clk 0:03:00.6]} 8. Qd2 {[%clk 0:03:00.7]} 8...
Bb7 {[%clk 0:03:00.4]} 9. g4 {[%clk 0:02:58]} 9... Bg7 {[%clk 0:02:54.2]} 10. g5
{[%clk 0:02:57.8]} 10... Nfd7 {[%clk 0:02:53.8]} 11. O-O-O {[%clk 0:02:55.1]}
11... Nb6 {[%clk 0:02:45.4]} 12. h4 {[%clk 0:02:53.2]} 12... N8d7 {[%clk
0:02:45.2]} 13. h5 {[%clk 0:02:51.8]} 13... Rg8 {[%clk 0:02:45.2]} 14. hxg6
{[%clk 0:02:50.2]} 14... hxg6 {[%clk 0:02:46.1]} 15. Bg2 {[%clk 0:02:31.6]}
15... Nc4 {[%clk 0:02:43.2]} 16. Qf2 {[%clk 0:02:30.5]} 16... Nxe3 {[%clk
0:02:40.4]} 17. Qxe3 {[%clk 0:02:29.9]} 17... Nb6 {[%clk 0:02:38.8]} 18. f4
{[%clk 0:02:25.4]} 18... Nc4 {[%clk 0:02:32.7]} 19. Qf2 {[%clk 0:02:24.7]} 19...
Qb6 {[%clk 0:02:26.9]} 20. Nd5 {[%clk 0:02:12]} 20... Bxd5 {[%clk 0:02:14.4]}
21. exd5 {[%clk 0:02:12.9]} 21... Qa5 {[%clk 0:01:56.7]} 22. a3 {[%clk
0:01:57.1]} 22... Rc8 {[%clk 0:01:49.7]} 23. Rh7 {[%clk 0:01:22.9]} 23... b4
{[%clk 0:01:40.8]} 24. Rxg7 {[%clk 0:01:22]} 24... Rxg7 {[%clk 0:01:39.4]} 25.
Nc6 {[%clk 0:00:28.2]} 25... Rxc6 {[%clk 0:01:38.9]} 26. dxc6 {[%clk 0:00:28.5]}
26... bxa3 {[%clk 0:01:38.7]} 27. c7 {[%clk 0:00:20.6]} 27... axb2+ {[%clk
0:01:37.1]} 0-1

[Event "*** Titled Tuesday Blitz"]
[Site "Chess.com"]
[Date "2020.04.07"]
[Round "4"]
[White "malandragem"]
[Black "Jabberwockiez"]
[Result "1-0"]
[WhiteElo "2477"]
[BlackElo "2298"]
[TimeControl "180+1"]
[EndTime "13:38:58 PDT"]
[Termination "malandragem won by resignation"]

1. e4 {[%clk 0:03:00.9]} 1... c5 {[%clk 0:02:58.9]} 2. Nc3 {[%clk 0:03:00.9]}
2... Nc6 {[%clk 0:02:58.5]} 3. Nge2 {[%clk 0:03:00.9]} 3... g6 {[%clk
0:02:58.4]} 4. g3 {[%clk 0:03:00.7]} 4... Bg7 {[%clk 0:02:58.2]} 5. Bg2 {[%clk
0:03:01.1]} 5... e6 {[%clk 0:02:58.8]} 6. d3 {[%clk 0:03:01.5]} 6... Nge7 {[%clk
0:02:59.3]} 7. Bg5 {[%clk 0:03:01.8]} 7... O-O {[%clk 0:02:59.7]} 8. Qd2 {[%clk
0:03:02.3]} 8... d5 {[%clk 0:02:59.7]} 9. Bh6 {[%clk 0:02:58.7]} 9... d4 {[%clk
0:02:51.1]} 10. Nd1 {[%clk 0:02:57.2]} 10... f5 {[%clk 0:02:38.3]} 11. Bxg7
{[%clk 0:02:50.2]} 11... Kxg7 {[%clk 0:02:39.2]} 12. f4 {[%clk 0:02:51.1]} 12...
e5 {[%clk 0:02:26.9]} 13. Nf2 {[%clk 0:02:46.8]} 13... c4 {[%clk 0:02:18.4]} 14.
O-O {[%clk 0:02:41.8]} 14... Be6 {[%clk 0:02:13.1]} 15. Rae1 {[%clk 0:02:39]}
15... cxd3 {[%clk 0:02:08.2]} 16. Nxd3 {[%clk 0:02:37.2]} 16... fxe4 {[%clk
0:02:02.3]} 17. Bxe4 {[%clk 0:02:38.1]} 17... Nd5 {[%clk 0:01:54.7]} 18. fxe5
{[%clk 0:02:33.6]} 18... Ne3 {[%clk 0:01:46.9]} 19. Rxf8 {[%clk 0:02:33.4]}
19... Qxf8 {[%clk 0:01:47.8]} 20. Bxc6 {[%clk 0:02:25.7]} 20... bxc6 {[%clk
0:01:45.7]} 21. Nxd4 {[%clk 0:02:26]} 21... Bh3 {[%clk 0:01:21.4]} 22. Qxe3
{[%clk 0:02:23.4]} 22... c5 {[%clk 0:01:13.7]} 23. Nf3 {[%clk 0:02:08.4]} 23...
c4 {[%clk 0:01:06.7]} 24. Nf4 {[%clk 0:02:08.1]} 24... Bg4 {[%clk 0:01:04.6]}
25. Ng5 {[%clk 0:02:05.9]} 25... Kh8 {[%clk 0:01:01.7]} 26. e6 {[%clk
0:02:05.5]} 26... Qe7 {[%clk 0:00:58.6]} 27. Nf7+ {[%clk 0:01:58.7]} 27... Kg7
{[%clk 0:00:57.3]} 28. Nd5 {[%clk 0:01:48.1]} 28... Qxe6 {[%clk 0:00:47]} 29.
Qd4+ {[%clk 0:01:40.3]} 29... Kxf7 {[%clk 0:00:39]} 30. Rxe6 {[%clk 0:01:40.2]}
30... Bxe6 {[%clk 0:00:39.6]} 31. Qf6+ {[%clk 0:01:40.5]} 31... Kg8 {[%clk
0:00:39.6]} 32. Qxe6+ {[%clk 0:01:40.8]} 32... Kg7 {[%clk 0:00:40]} 33. Qf6+
{[%clk 0:01:39.5]} 33... Kh6 {[%clk 0:00:38.1]} 34. g4 {[%clk 0:01:35.9]} 1-0

[Event "*** Titled Tuesday Blitz"]
[Site "Chess.com"]
[Date "2020.04.07"]
[Round "4"]
[White "stasiek18"]
[Black "stefan_95"]
[Result "0-1"]
[WhiteElo "2409"]
[BlackElo "2634"]
[TimeControl "180+1"]
[EndTime "13:39:07 PDT"]
[Termination "stefan_95 won on time"]

1. d4 {[%clk 0:03:00.9]} 1... Nf6 {[%clk 0:02:59.3]} 2. Bg5 {[%clk 0:03:00.9]}
2... d5 {[%clk 0:02:59]} 3. Bxf6 {[%clk 0:03:00.5]} 3... exf6 {[%clk 0:02:59.9]}
4. e3 {[%clk 0:03:01.3]} 4... Bd6 {[%clk 0:03:00.4]} 5. g3 {[%clk 0:03:01.7]}
5... f5 {[%clk 0:03:00.8]} 6. Bg2 {[%clk 0:03:02]} 6... c6 {[%clk 0:03:00.5]} 7.
Ne2 {[%clk 0:03:02.2]} 7... Nd7 {[%clk 0:03:00.5]} 8. O-O {[%clk 0:03:02.3]}
8... Nf6 {[%clk 0:03:01]} 9. b3 {[%clk 0:03:00.2]} 9... h5 {[%clk 0:03:00.6]}
10. h4 {[%clk 0:02:51.6]} 10... Ng4 {[%clk 0:02:52.9]} 11. c4 {[%clk 0:02:31.9]}
11... dxc4 {[%clk 0:02:50.7]} 12. bxc4 {[%clk 0:02:31.9]} 12... g5 {[%clk
0:02:50.9]} 13. c5 {[%clk 0:01:23.2]} 13... Bc7 {[%clk 0:02:47]} 14. d5 {[%clk
0:01:16.1]} 14... cxd5 {[%clk 0:02:43.7]} 15. Nbc3 {[%clk 0:00:34.4]} 15... gxh4
{[%clk 0:02:32.9]} 16. Nxd5 {[%clk 0:00:33.9]} 16... hxg3 {[%clk 0:02:29.2]} 17.
fxg3 {[%clk 0:00:33.7]} 17... h4 {[%clk 0:02:19.7]} 18. e4 {[%clk 0:00:14.5]}
18... hxg3 {[%clk 0:02:15.9]} 19. exf5 {[%clk 0:00:13.5]} 19... Be5 {[%clk
0:01:59.4]} 20. Qa4+ {[%clk 0:00:12.2]} 20... Kf8 {[%clk 0:01:56.7]} 21. Qxg4
{[%clk 0:00:12.2]} 21... Rh4 {[%clk 0:01:36.7]} 22. Qf3 {[%clk 0:00:06.5]} 22...
Qg5 {[%clk 0:01:36.8]} 23. Nef4 {[%clk 0:00:04.1]} 23... Bd4+ {[%clk 0:01:33.5]}
24. Ne3 {[%clk 0:00:02]} 24... Rxf4 {[%clk 0:01:27.1]} 25. Qxf4 {[%clk
0:00:01.1]} 25... Bxe3+ {[%clk 0:01:27.6]} 0-1

[Event "*** Titled Tuesday Blitz"]
[Site "Chess.com"]
[Date "2020.04.07"]
[Round "4"]
[White "Manukyan_Artak"]
[Black "Perecke"]
[Result "0-1"]
[WhiteElo "2402"]
[BlackElo "2155"]
[TimeControl "180+1"]
[EndTime "13:39:09 PDT"]
[Termination "Perecke won by resignation"]

1. e4 {[%clk 0:03:00.9]} 1... e5 {[%clk 0:02:48.2]} 2. Nf3 {[%clk 0:02:59.3]}
2... Nc6 {[%clk 0:02:42.4]} 3. d4 {[%clk 0:02:59.2]} 3... exd4 {[%clk
0:02:41.3]} 4. Nxd4 {[%clk 0:03:00.1]} 4... Bc5 {[%clk 0:02:41.5]} 5. Nxc6
{[%clk 0:02:59.6]} 5... Qf6 {[%clk 0:02:41.1]} 6. Qf3 {[%clk 0:02:55.7]} 6...
dxc6 {[%clk 0:02:38]} 7. Bc4 {[%clk 0:02:52.8]} 7... Be6 {[%clk 0:02:35.3]} 8.
Bxe6 {[%clk 0:02:51]} 8... Qxe6 {[%clk 0:02:34.6]} 9. O-O {[%clk 0:02:49.6]}
9... O-O-O {[%clk 0:02:34.7]} 10. Nc3 {[%clk 0:02:44.1]} 10... Ne7 {[%clk
0:02:31.5]} 11. Be3 {[%clk 0:02:38.4]} 11... Bxe3 {[%clk 0:02:24.2]} 12. Qxe3
{[%clk 0:02:38.1]} 12... Kb8 {[%clk 0:02:19.8]} 13. Rad1 {[%clk 0:02:35.6]}
13... f6 {[%clk 0:02:15]} 14. Rd2 {[%clk 0:02:24.9]} 14... Rd6 {[%clk
0:02:08.5]} 15. Rfd1 {[%clk 0:02:23.3]} 15... Rhd8 {[%clk 0:02:07.5]} 16. g3
{[%clk 0:02:19]} 16... f5 {[%clk 0:01:48.5]} 17. e5 {[%clk 0:02:15.4]} 17...
Rxd2 {[%clk 0:01:45.7]} 18. Rxd2 {[%clk 0:02:15]} 18... Rxd2 {[%clk 0:01:45.3]}
19. Qxd2 {[%clk 0:02:14.9]} 19... Qxe5 {[%clk 0:01:45.2]} 20. Qd8+ {[%clk
0:02:08.6]} 20... Nc8 {[%clk 0:01:45.3]} 21. Kg2 {[%clk 0:02:05.8]} 21... b6
{[%clk 0:01:44.3]} 22. Qd7 {[%clk 0:02:02.2]} 22... Kb7 {[%clk 0:01:42.2]} 23.
h4 {[%clk 0:01:57.8]} 23... Nd6 {[%clk 0:01:38.7]} 24. h5 {[%clk 0:01:55.8]}
24... Nc4 {[%clk 0:01:36.7]} 25. h6 {[%clk 0:01:51.3]} 25... gxh6 {[%clk
0:01:35.8]} 26. Qxh7 {[%clk 0:01:45.7]} 26... Nxb2 {[%clk 0:01:35.8]} 27. Nb1
{[%clk 0:01:31.4]} 27... Qe4+ {[%clk 0:01:33.8]} 28. Kh2 {[%clk 0:01:31.2]}
28... Qxc2 {[%clk 0:01:31.1]} 29. Qxh6 {[%clk 0:01:31.4]} 29... Qxb1 {[%clk
0:01:27.1]} 30. Qf4 {[%clk 0:01:31.2]} 30... Qe4 {[%clk 0:01:12.8]} 31. Qxe4
{[%clk 0:01:29.9]} 31... fxe4 {[%clk 0:01:12.7]} 32. g4 {[%clk 0:01:30.8]} 32...
Kc8 {[%clk 0:01:09]} 33. Kg3 {[%clk 0:01:30.5]} 33... Kd7 {[%clk 0:00:54.3]} 34.
Kf4 {[%clk 0:01:30.6]} 34... Nd1 {[%clk 0:00:49.3]} 35. g5 {[%clk 0:01:28.1]}
35... Ke6 {[%clk 0:00:47.8]} 36. Kxe4 {[%clk 0:01:22.4]} 36... Nxf2+ {[%clk
0:00:46.9]} 37. Kd4 {[%clk 0:01:22.6]} 37... Kf5 {[%clk 0:00:45.1]} 0-1

[Event "*** Titled Tuesday Blitz"]
[Site "Chess.com"]
[Date "2020.04.07"]
[Round "4"]
[White "AshotParvanyan"]
[Black "fpawn"]
[Result "1-0"]
[WhiteElo "2525"]
[BlackElo "2291"]
[TimeControl "180+1"]
[EndTime "13:39:10 PDT"]
[Termination "AshotParvanyan won by resignation"]

1. d4 {[%clk 0:03:00.9]} 1... f5 {[%clk 0:02:43.6]} 2. c4 {[%clk 0:02:58.9]}
2... Nf6 {[%clk 0:02:43.6]} 3. g3 {[%clk 0:02:58.4]} 3... g6 {[%clk 0:02:43.7]}
4. Bg2 {[%clk 0:02:58.8]} 4... Bg7 {[%clk 0:02:44.3]} 5. Nf3 {[%clk 0:02:58.8]}
5... d6 {[%clk 0:02:44.9]} 6. O-O {[%clk 0:02:58.9]} 6... O-O {[%clk 0:02:44.8]}
7. Nc3 {[%clk 0:02:59.2]} 7... Qe8 {[%clk 0:02:44.3]} 8. d5 {[%clk 0:02:58.7]}
8... Na6 {[%clk 0:02:44.4]} 9. Nd4 {[%clk 0:02:57.5]} 9... Bd7 {[%clk
0:02:39.1]} 10. a3 {[%clk 0:02:53.3]} 10... c5 {[%clk 0:02:36.8]} 11. Ne6 {[%clk
0:02:44.1]} 11... Bxe6 {[%clk 0:02:35.7]} 12. dxe6 {[%clk 0:02:45]} 12... Qc8
{[%clk 0:02:35.9]} 13. Nd5 {[%clk 0:02:40.8]} 13... Nxd5 {[%clk 0:02:29.1]} 14.
cxd5 {[%clk 0:02:36.8]} 14... b5 {[%clk 0:02:28.3]} 15. h4 {[%clk 0:02:34.4]}
15... b4 {[%clk 0:02:13.3]} 16. h5 {[%clk 0:02:32.5]} 16... Qb7 {[%clk
0:01:35.1]} 17. Bf3 {[%clk 0:02:30.2]} 17... Nc7 {[%clk 0:01:33.6]} 18. Kg2
{[%clk 0:02:28.5]} 18... a5 {[%clk 0:01:33.1]} 19. hxg6 {[%clk 0:02:27.3]} 19...
hxg6 {[%clk 0:01:32.6]} 20. Rh1 {[%clk 0:02:27.7]} 20... Ne8 {[%clk 0:01:14.9]}
21. Bh6 {[%clk 0:02:24.7]} 21... Nf6 {[%clk 0:01:14.3]} 22. Qd2 {[%clk
0:02:21.7]} 22... Ne4 {[%clk 0:01:02.4]} 23. Bxe4 {[%clk 0:02:19.2]} 23... fxe4
{[%clk 0:01:02.5]} 24. Bxg7 {[%clk 0:02:18.6]} 24... Kxg7 {[%clk 0:01:03.4]} 25.
Qh6+ {[%clk 0:02:14.6]} 25... Kf6 {[%clk 0:01:03.4]} 26. Qh4+ {[%clk 0:01:55.4]}
26... Kg7 {[%clk 0:01:00.8]} 27. Qh7+ {[%clk 0:01:51.3]} 27... Kf6 {[%clk
0:00:59.8]} 28. Rh6 {[%clk 0:01:51.6]} 28... Ke5 {[%clk 0:00:45.1]} 29. Rd1
{[%clk 0:01:35.7]} 29... Rf6 {[%clk 0:00:26.7]} 30. Rxg6 {[%clk 0:01:29]} 30...
Rxg6 {[%clk 0:00:19.5]} 31. Qxg6 {[%clk 0:01:29.9]} 31... Rf8 {[%clk 0:00:19.5]}
32. f4+ {[%clk 0:01:26.5]} 32... exf3+ {[%clk 0:00:18.9]} 33. exf3 {[%clk
0:01:26.3]} 1-0

[Event "*** Titled Tuesday Blitz"]
[Site "Chess.com"]
[Date "2020.04.07"]
[Round "4"]
[White "tonyq11"]
[Black "Viuvanegra"]
[Result "1-0"]
[WhiteElo "2275"]
[BlackElo "1941"]
[TimeControl "180+1"]
[EndTime "13:39:10 PDT"]
[Termination "tonyq11 won on time"]

1. d4 {[%clk 0:03:00.9]} 1... d5 {[%clk 0:02:52.2]} 2. c4 {[%clk 0:03:00.9]}
2... e6 {[%clk 0:02:50.8]} 3. Nc3 {[%clk 0:03:01.1]} 3... Be7 {[%clk 0:02:49.3]}
4. Bf4 {[%clk 0:03:00.5]} 4... Nf6 {[%clk 0:02:47.3]} 5. e3 {[%clk 0:03:01]}
5... O-O {[%clk 0:02:46.5]} 6. Nf3 {[%clk 0:03:00.6]} 6... b6 {[%clk 0:02:44.9]}
7. h3 {[%clk 0:02:58.4]} 7... Bb7 {[%clk 0:02:44]} 8. Rc1 {[%clk 0:02:58]} 8...
c5 {[%clk 0:02:36.1]} 9. Be2 {[%clk 0:02:56.2]} 9... Nc6 {[%clk 0:02:22.8]} 10.
O-O {[%clk 0:02:50.8]} 10... cxd4 {[%clk 0:02:15.8]} 11. exd4 {[%clk 0:02:49.7]}
11... Rc8 {[%clk 0:02:01.1]} 12. b3 {[%clk 0:02:32.2]} 12... h6 {[%clk
0:01:44.6]} 13. Bd3 {[%clk 0:02:18.9]} 13... Nb4 {[%clk 0:01:20.6]} 14. Be2
{[%clk 0:02:04.3]} 14... dxc4 {[%clk 0:01:10.5]} 15. bxc4 {[%clk 0:02:03.3]}
15... Ne4 {[%clk 0:00:59.5]} 16. Nxe4 {[%clk 0:01:58.6]} 16... Bxe4 {[%clk
0:00:58.3]} 17. Qa4 {[%clk 0:01:48.8]} 17... Nc6 {[%clk 0:00:53.4]} 18. Rfd1
{[%clk 0:01:34.7]} 18... Qe8 {[%clk 0:00:49.9]} 19. d5 {[%clk 0:01:30.1]} 19...
Na5 {[%clk 0:00:19.9]} 20. Qxe8 {[%clk 0:01:28.3]} 20... Rfxe8 {[%clk 0:00:16]}
21. d6 {[%clk 0:01:27.1]} 21... Bxd6 {[%clk 0:00:05.2]} 22. Rxd6 {[%clk
0:01:28]} 22... Nc6 {[%clk 0:00:01.2]} 23. Ne5 {[%clk 0:01:23.9]} 1-0

[Event "*** Titled Tuesday Blitz"]
[Site "Chess.com"]
[Date "2020.04.07"]
[Round "4"]
[White "DeGrootteZ"]
[Black "LawrenceTrent"]
[Result "1-0"]
[WhiteElo "2698"]
[BlackElo "2505"]
[TimeControl "180+1"]
[EndTime "13:39:11 PDT"]
[Termination "DeGrootteZ won by resignation"]

1. e4 {[%clk 0:03:00.9]} 1... c5 {[%clk 0:02:59.8]} 2. Nf3 {[%clk 0:03:01.2]}
2... Nc6 {[%clk 0:02:47.1]} 3. d4 {[%clk 0:03:01.1]} 3... cxd4 {[%clk
0:02:37.8]} 4. Nxd4 {[%clk 0:03:02]} 4... Nf6 {[%clk 0:02:38.7]} 5. Nc3 {[%clk
0:03:01.6]} 5... d6 {[%clk 0:02:36.7]} 6. Bg5 {[%clk 0:03:02]} 6... e6 {[%clk
0:02:36.7]} 7. Qd2 {[%clk 0:03:01.5]} 7... Qb6 {[%clk 0:02:36.7]} 8. O-O-O
{[%clk 0:03:01.9]} 8... Qxd4 {[%clk 0:02:36]} 9. Qxd4 {[%clk 0:03:02.8]} 9...
Nxd4 {[%clk 0:02:36.9]} 10. Rxd4 {[%clk 0:03:03.7]} 10... a6 {[%clk 0:02:36.7]}
11. Na4 {[%clk 0:03:00.8]} 11... e5 {[%clk 0:02:29]} 12. Bxf6 {[%clk 0:03:00.1]}
12... exd4 {[%clk 0:02:22.6]} 13. Bxd4 {[%clk 0:03:01]} 13... Be6 {[%clk
0:02:20.1]} 14. Nb6 {[%clk 0:02:59]} 14... Rd8 {[%clk 0:02:19.9]} 15. Bd3 {[%clk
0:02:52.8]} 15... Be7 {[%clk 0:02:19.9]} 16. f4 {[%clk 0:02:48.9]} 16... f6
{[%clk 0:02:15.4]} 17. h3 {[%clk 0:02:13.1]} 17... h5 {[%clk 0:02:07.6]} 18. f5
{[%clk 0:02:12.1]} 18... Bf7 {[%clk 0:02:07.7]} 19. c4 {[%clk 0:02:09.2]} 19...
g6 {[%clk 0:01:58.7]} 20. fxg6 {[%clk 0:02:02.2]} 20... Bxg6 {[%clk 0:01:58.9]}
21. Rf1 {[%clk 0:02:02.4]} 21... O-O {[%clk 0:01:20.8]} 22. Nd5 {[%clk
0:01:55.7]} 22... Rde8 {[%clk 0:01:08.5]} 23. g4 {[%clk 0:01:55.8]} 23... hxg4
{[%clk 0:01:08.1]} 24. hxg4 {[%clk 0:01:56.7]} 24... Bd8 {[%clk 0:01:07]} 25.
Rf4 {[%clk 0:01:50.4]} 25... Re5 {[%clk 0:00:50.7]} 26. Bxe5 {[%clk 0:01:42.9]}
26... fxe5 {[%clk 0:00:50.2]} 27. Rxf8+ {[%clk 0:01:43.8]} 27... Kxf8 {[%clk
0:00:51.1]} 28. Kc2 {[%clk 0:01:33.9]} 28... Kg7 {[%clk 0:00:51.3]} 29. Kd2
{[%clk 0:01:29.9]} 29... Kh6 {[%clk 0:00:51.5]} 30. Ke2 {[%clk 0:01:28.4]} 30...
Kg5 {[%clk 0:00:51.9]} 31. Kf3 {[%clk 0:01:28.9]} 31... Kh4 {[%clk 0:00:52.4]}
32. Ne3 {[%clk 0:01:24.6]} 32... Bb6 {[%clk 0:00:51]} 33. Nf5+ {[%clk
0:01:21.7]} 33... Bxf5 {[%clk 0:00:48.4]} 34. exf5 {[%clk 0:01:22.6]} 34... Kg5
{[%clk 0:00:47.4]} 35. Be4 {[%clk 0:01:21.6]} 35... Bd4 {[%clk 0:00:44.3]} 36.
Bxb7 {[%clk 0:01:21.7]} 36... Bxb2 {[%clk 0:00:44.3]} 37. Bxa6 {[%clk
0:01:21.5]} 1-0